fUST/lending_fUST_20260523
["ID","MTS","AMOUNT","RATE_DAILY","PERIOD"]
[422828060,1779479445000,-504.57813918,8.219e-05,2]
[422828059,1779479445000,-727.53,8.219e-05,2]
[422828078,1779479445000,-508.02,8.219e-05,2]
[422828080,1779479445000,-68.18437267,8.219e-05,2]
[422828076,1779479445000,-318.09562733,8.219e-05,2]
[422828079,1779479445000,-500.0,8.219e-05,2]
[422828075,1779479445000,-181.90437267,8.219e-05,2]
[422828077,1779479445000,-500.0,8.219e-05,2]
[422828065,1779479445000,-536.02774865,8.219e-05,2]
[422828054,1779479445000,-2201.96,8.219e-05,2]
[422828062,1779479445000,-500.0,8.219e-05,2]
[422828074,1779479445000,-500.0,8.219e-05,2]
[422828069,1779479445000,-553.9603979,8.219e-05,2]
[422828072,1779479445000,-830.31,8.219e-05,2]
[422828071,1779479445000,-771.19,8.219e-05,2]
[422828067,1779479445000,-500.0,8.219e-05,2]
[422828057,1779479445000,-144.8806584,8.219e-05,2]
[422828061,1779479445000,-637.6,8.219e-05,2]
[422828058,1779479445000,-355.1193416,8.219e-05,2]
[422828056,1779479445000,-1372.41224694,8.219e-05,2]
[422828073,1779479445000,-500.0,8.219e-05,2]
[422828063,1779479445000,-500.0,8.219e-05,2]
[422828070,1779479445000,-500.0,8.219e-05,2]
[422828068,1779479445000,-500.0,8.219e-05,2]
[422828064,1779479445000,-500.0,8.219e-05,2]
[422828108,1779480390000,-169.369556,6.389e-05,2]
[422828107,1779480390000,-365.56229211,6.325e-05,2]
[422828110,1779480390000,-500.0,6.389e-05,2]
[422828113,1779480390000,-155.802,6.453e-05,2]
[422828112,1779480390000,-401.4549704,6.403e-05,2]
[422828109,1779480390000,-500.0,6.389e-05,2]
[422828111,1779480390000,-500.0,6.389e-05,2]
[422828115,1779480390000,-300.0,6.66e-05,2]
[422828114,1779480390000,-151.0,6.5e-05,2]
[422828118,1779480390000,-150.0,6.662e-05,2]
[422828117,1779480390000,-150.0,6.662e-05,2]
[422828119,1779480390000,-647.0,6.662e-05,2]
[422828121,1779480390000,-2203.0,6.662e-05,2]
[422828120,1779480390000,-1413.0,6.662e-05,2]
[422828122,1779480390000,-185.0,6.662e-05,2]
[422828123,1779480390000,-443.0,6.662e-05,2]
[422828124,1779480390000,-4954.22636245,6.664e-05,2]
[422828116,1779480390000,-1200.0,6.661e-05,2]
[422828258,1779480641000,-500.0,6.665e-05,2]
[422828251,1779480641000,-500.0,6.665e-05,2]
[422828262,1779480641000,-500.0,6.665e-05,2]
[422828263,1779480641000,-500.0,6.665e-05,2]
[422828267,1779480641000,-500.0,6.665e-05,2]
[422828260,1779480641000,-500.0,6.665e-05,2]
[422828269,1779480641000,-500.0,6.665e-05,2]
[422828246,1779480641000,-500.0,6.663e-05,2]
[422828265,1779480641000,-500.0,6.665e-05,2]
[422828253,1779480641000,-500.0,6.665e-05,2]
[422828248,1779480641000,-500.0,6.663e-05,2]
[422828244,1779480641000,-500.0,6.663e-05,2]
[422828234,1779480641000,-500.0,6.663e-05,2]
[422828236,1779480641000,-514.31929124,6.663e-05,2]
[422828241,1779480641000,-500.0,6.663e-05,2]
[422828229,1779480641000,-325.71547518,6.663e-05,2]
[422828231,1779480641000,-569.13204232,6.663e-05,2]
[422828224,1779480641000,-500.0,6.663e-05,2]
[422828232,1779480641000,-500.0,6.663e-05,2]
[422828227,1779480641000,-500.0,6.663e-05,2]
[422828225,1779480641000,-500.0,6.663e-05,2]
[422828220,1779480641000,-300.0,6.662e-05,2]
[422828222,1779480641000,-1200.0,6.662e-05,2]
[422828249,1779480641000,-45045.77363755,6.664e-05,2]
[422828239,1779480641000,-500.0,6.663e-05,2]
[422828255,1779480641000,-500.0,6.665e-05,2]
[422828256,1779480641000,-346.61398415,6.665e-05,2]
[422828271,1779480641000,-500.0,6.665e-05,2]
[422828272,1779480641000,-550.0,6.665e-05,2]
[422828302,1779480641000,-420.0,7.328e-05,2]
[422828301,1779480641000,-388.058,7.086e-05,2]
[422828300,1779480641000,-600.0,7.007e-05,2]
[422828303,1779480641000,-1631.0,7.328e-05,2]
[422828304,1779480641000,-160.0,7.641e-05,2]
[422828298,1779480641000,-300.0,7.007e-05,2]
[422828299,1779480641000,-300.0,7.007e-05,2]
[422828296,1779480641000,-300.0,7.007e-05,2]
[422828293,1779480641000,-300.0,7.007e-05,2]
[422828297,1779480641000,-300.0,7.007e-05,2]
[422828294,1779480641000,-300.0,7.007e-05,2]
[422828306,1779480641000,-161.72364698,7.641e-05,2]
[422828279,1779480641000,-300.0,7.007e-05,2]
[422828281,1779480641000,-300.0,7.007e-05,2]
[422828276,1779480641000,-16945.66173791,6.666e-05,2]
[422828290,1779480641000,-300.0,7.007e-05,2]
[422828291,1779480641000,-300.0,7.007e-05,2]
[422828287,1779480641000,-300.0,7.007e-05,2]
[422828274,1779480641000,-829499.75645005,6.666e-05,2]
[422828282,1779480641000,-300.0,7.007e-05,2]
[422828284,1779480641000,-300.0,7.007e-05,2]
[422828278,1779480641000,-200.0,6.671e-05,2]
[422828305,1779480641000,-766.56709688,7.641e-05,2]
[422828285,1779480641000,-300.0,7.007e-05,2]
[422828288,1779480641000,-300.0,7.007e-05,2]
[422828339,1779480642000,-500.0,8.219e-05,2]
[422828343,1779480642000,-346.84154924,8.219e-05,2]
[422828340,1779480642000,-714.01,8.219e-05,2]
[422828336,1779480642000,-500.0,8.219e-05,2]
[422828345,1779480642000,-507.11276437,8.219e-05,2]
[422828334,1779480642000,-1689.9064054,8.219e-05,2]
[422828344,1779480642000,-500.0,8.219e-05,2]
[422828337,1779480642000,-1155.53,8.219e-05,2]
[422828346,1779480642000,-500.61446561,8.219e-05,2]
[422828341,1779480642000,-500.0,8.219e-05,2]
[422828338,1779480642000,-500.0,8.219e-05,2]
[422828350,1779480642000,-694.63,8.219e-05,2]
[422828348,1779480642000,-500.0,8.219e-05,2]
[422828349,1779480642000,-834.13,8.219e-05,2]
[422828360,1779480642000,-500.0,8.219e-05,2]
[422828359,1779480642000,-500.0,8.219e-05,2]
[422828351,1779480642000,-500.0,8.219e-05,2]
[422828358,1779480642000,-566.54,8.219e-05,2]
[422828354,1779480642000,-500.0,8.219e-05,2]
[422828352,1779480642000,-789.45,8.219e-05,2]
[422828353,1779480642000,-500.0,8.219e-05,2]
[422828355,1779480642000,-1971.55,8.219e-05,2]
[422828335,1779480642000,-4995.7978,8.219e-05,2]
[422828342,1779480642000,-500.0,8.219e-05,2]
[422828328,1779480642000,-151.0,7.981e-05,2]
[422828312,1779480642000,-162.380719,7.981e-05,2]
[422828331,1779480642000,-687.9932433,8e-05,2]
[422828307,1779480642000,-160.0,7.641e-05,2]
[422828308,1779480642000,-160.0,7.641e-05,2]
[422828309,1779480642000,-720.0,7.708e-05,2]
[422828317,1779480642000,-151.0,7.981e-05,2]
[422828318,1779480642000,-151.0,7.981e-05,2]
[422828319,1779480642000,-151.0,7.981e-05,2]
[422828311,1779480642000,-229.99,7.953e-05,2]
[422828320,1779480642000,-151.0,7.981e-05,2]
[422828316,1779480642000,-151.0,7.981e-05,2]
[422828310,1779480642000,-500.0,7.878e-05,2]
[422828314,1779480642000,-151.0,7.981e-05,2]
[422828329,1779480642000,-151.0,7.981e-05,2]
[422828313,1779480642000,-540.4888376,7.981e-05,2]
[422828315,1779480642000,-151.0,7.981e-05,2]
[422828323,1779480642000,-151.0,7.981e-05,2]
[422828321,1779480642000,-151.0,7.981e-05,2]
[422828333,1779480642000,-5031.1973754,8.219e-05,2]
[422828322,1779480642000,-151.0,7.981e-05,2]
[422828327,1779480642000,-151.0,7.981e-05,2]
[422828332,1779480642000,-218762.1304249,8.068e-05,2]
[422828324,1779480642000,-151.0,7.981e-05,2]
[422828325,1779480642000,-151.0,7.981e-05,2]
[422828326,1779480642000,-151.0,7.981e-05,2]
[422828330,1779480642000,-173.0206552,7.981e-05,2]
[422828357,1779480642000,-500.0,8.219e-05,2]
[422828356,1779480642000,-500.0,8.219e-05,2]
[422828347,1779480642000,-1800.08,8.219e-05,2]
[422828362,1779480642000,-500.0,8.219e-05,2]
[422828395,1779480642000,-500.0,8.219e-05,2]
[422828401,1779480642000,-500.0,8.219e-05,2]
[422828388,1779480642000,-947.74,8.219e-05,2]
[422828402,1779480642000,-500.0,8.219e-05,2]
[422828400,1779480642000,-302.95576371,8.219e-05,2]
[422828394,1779480642000,-800.75,8.219e-05,2]
[422828391,1779480642000,-500.0,8.219e-05,2]
[422828399,1779480642000,-578.72,8.219e-05,2]
[422828393,1779480642000,-500.0,8.219e-05,2]
[422828396,1779480642000,-526.26,8.219e-05,2]
[422828397,1779480642000,-500.0,8.219e-05,2]
[422828403,1779480642000,-500.0,8.219e-05,2]
[422828405,1779480642000,-500.0,8.219e-05,2]
[422828416,1779480642000,-208.62394487,8.219e-05,2]
[422828406,1779480642000,-500.0,8.219e-05,2]
[422828404,1779480642000,-500.0,8.219e-05,2]
[422828408,1779480642000,-500.0,8.219e-05,2]
[422828410,1779480642000,-770.74,8.219e-05,2]
[422828411,1779480642000,-598.95,8.219e-05,2]
[422828413,1779480642000,-500.0,8.219e-05,2]
[422828414,1779480642000,-500.0,8.219e-05,2]
[422828407,1779480642000,-500.0,8.219e-05,2]
[422828372,1779480642000,-500.0,8.219e-05,2]
[422828409,1779480642000,-1035.34,8.219e-05,2]
[422828415,1779480642000,-794.19,8.219e-05,2]
[422828389,1779480642000,-500.0,8.219e-05,2]
[422828412,1779480642000,-500.0,8.219e-05,2]
[422828387,1779480642000,-665.59,8.219e-05,2]
[422828364,1779480642000,-500.0,8.219e-05,2]
[422828365,1779480642000,-500.0,8.219e-05,2]
[422828363,1779480642000,-163.79444771,8.219e-05,2]
[422828369,1779480642000,-500.0,8.219e-05,2]
[422828368,1779480642000,-895.09,8.219e-05,2]
[422828398,1779480642000,-500.0,8.219e-05,2]
[422828373,1779480642000,-527.32461009,8.219e-05,2]
[422828370,1779480642000,-537.57,8.219e-05,2]
[422828366,1779480642000,-562.89,8.219e-05,2]
[422828374,1779480642000,-500.0,8.219e-05,2]
[422828367,1779480642000,-500.0,8.219e-05,2]
[422828371,1779480642000,-500.0,8.219e-05,2]
[422828361,1779480642000,-683.02,8.219e-05,2]
[422828376,1779480642000,-500.0,8.219e-05,2]
[422828386,1779480642000,-500.0,8.219e-05,2]
[422828377,1779480642000,-1066.25,8.219e-05,2]
[422828378,1779480642000,-600.9208,8.219e-05,2]
[422828385,1779480642000,-772.7,8.219e-05,2]
[422828379,1779480642000,-500.0,8.219e-05,2]
[422828380,1779480642000,-500.0,8.219e-05,2]
[422828382,1779480642000,-500.0,8.219e-05,2]
[422828384,1779480642000,-500.0,8.219e-05,2]
[422828381,1779480642000,-500.0,8.219e-05,2]
[422828383,1779480642000,-500.0,8.219e-05,2]
[422828375,1779480642000,-1237.4,8.219e-05,2]
[422828432,1779480643000,-291.37605513,8.219e-05,2]
[422828433,1779480643000,-338.94794487,8.219e-05,2]
[422828457,1779480644000,-279.96074275,8.219e-05,2]
[422828454,1779480644000,-161.05205513,8.219e-05,2]
[422828456,1779480644000,-657.7,8.219e-05,2]
[422828455,1779480644000,-500.0,8.219e-05,2]
[422828467,1779480646000,-500.0,8.219e-05,2]
[422828465,1779480646000,-220.03925725,8.219e-05,2]
[422828470,1779480646000,-500.0,8.219e-05,2]
[422828472,1779480646000,-1198.74,8.219e-05,2]
[422828471,1779480646000,-703.67,8.219e-05,2]
[422828466,1779480646000,-151.0,8.219e-05,2]
[422828468,1779480646000,-500.0,8.219e-05,2]
[422828469,1779480646000,-811.11,8.219e-05,2]
[422828476,1779480646000,-500.0,8.219e-05,2]
[422828477,1779480646000,-695.07,8.219e-05,2]
[422828480,1779480646000,-500.0,8.219e-05,2]
[422828481,1779480646000,-723.66111251,8.219e-05,2]
[422828479,1779480646000,-500.0,8.219e-05,2]
[422828473,1779480646000,-500.0,8.219e-05,2]
[422828475,1779480646000,-500.0,8.219e-05,2]
[422828474,1779480646000,-1335.97,8.219e-05,2]
[422828478,1779480646000,-500.0,8.219e-05,2]
[422828492,1779480647000,-1171.01110737,8.219e-05,2]
[422828491,1779480647000,-500.0,8.219e-05,2]
[422828483,1779480647000,-500.0,8.219e-05,2]
[422828488,1779480647000,-500.0,8.219e-05,2]
[422828489,1779480647000,-500.0,8.219e-05,2]
[422828490,1779480647000,-577.73,8.219e-05,2]
[422828486,1779480647000,-500.0,8.219e-05,2]
[422828482,1779480647000,-664.02888749,8.219e-05,2]
[422828485,1779480647000,-500.0,8.219e-05,2]
[422828484,1779480647000,-800.35,8.219e-05,2]
[422828487,1779480647000,-500.0,8.219e-05,2]
[422828509,1779481753000,-273.27440173,6.629e-05,2]
[422828547,1779481832000,-300.0,6.693e-05,2]
[422828572,1779481832000,-300.0,6.694e-05,2]
[422828561,1779481832000,-300.0,6.694e-05,2]
[422828570,1779481832000,-300.0,6.694e-05,2]
[422828559,1779481832000,-300.0,6.694e-05,2]
[422828557,1779481832000,-300.0,6.694e-05,2]
[422828555,1779481832000,-300.0,6.694e-05,2]
[422828537,1779481832000,-138.37955747,6.629e-05,2]
[422828553,1779481832000,-300.0,6.694e-05,2]
[422828545,1779481832000,-300.0,6.693e-05,2]
[422828568,1779481832000,-300.0,6.694e-05,2]
[422828543,1779481832000,-300.0,6.693e-05,2]
[422828539,1779481832000,-955.60320099,6.692e-05,2]
[422828549,1779481832000,-300.0,6.694e-05,2]
[422828551,1779481832000,-300.0,6.694e-05,2]
[422828541,1779481832000,-244.39679901,6.692e-05,2]
[422828566,1779481832000,-300.0,6.694e-05,2]
[422828612,1779481832000,-160.0,7.617e-05,2]
[422828563,1779481832000,-300.0,6.694e-05,2]
[422828574,1779481832000,-300.0,6.694e-05,2]
[422828625,1779481832000,-208.92839944,8.113e-05,2]
[422828623,1779481832000,-310.447,7.872e-05,2]
[422828621,1779481832000,-500.0,7.872e-05,2]
[422828619,1779481832000,-160.0,7.617e-05,2]
[422828614,1779481832000,-730.06005581,7.617e-05,2]
[422828606,1779481832000,-456.5775622,7.481e-05,2]
[422828617,1779481832000,-36.50704107,7.617e-05,2]
[422828608,1779481832000,-161.72364698,7.617e-05,2]
[422828610,1779481832000,-160.0,7.617e-05,2]
[422828602,1779481832000,-135.60119622,6.884e-05,2]
[422828580,1779481832000,-49.39880378,6.884e-05,2]
[422828578,1779481832000,-735.269,6.884e-05,2]
[422828576,1779481832000,-300.0,6.694e-05,2]
[422828565,1779481832000,-300.0,6.694e-05,2]
[422828604,1779481832000,-443.0,6.884e-05,2]
[422828816,1779481838000,-500.0,8.118e-05,2]
[422828812,1779481838000,-49791.07160056,8.113e-05,2]
[422828813,1779481838000,-500.0,8.118e-05,2]
[422828815,1779481838000,-500.0,8.118e-05,2]
[422828817,1779481838000,-500.0,8.118e-05,2]
[422828814,1779481838000,-500.0,8.118e-05,2]
[422828823,1779481838000,-200.0,8.118e-05,2]
[422828818,1779481838000,-500.0,8.118e-05,2]
[422828821,1779481838000,-591.14570826,8.118e-05,2]
[422828820,1779481838000,-500.0,8.118e-05,2]
[422828822,1779481838000,-500.0,8.118e-05,2]
[422828825,1779481838000,-45588.39629864,8.119e-05,2]
[422828824,1779481838000,-500.0,8.118e-05,2]
[422828819,1779481838000,-500.0,8.118e-05,2]
[422828891,1779482191000,176.197614,3.246e-05,2]
[422828967,1779483032000,-1200.0,6.422e-05,2]
[422828945,1779483032000,-9.31973578,6.159e-05,2]
[422828951,1779483032000,-190.68026422,6.159e-05,2]
[422828943,1779483032000,-302.5041921,5.845e-05,2]
[422828964,1779483032000,-300.0,6.422e-05,2]
[422828955,1779483032000,-415.05796305,6.366e-05,2]
[422828953,1779483032000,-166.35598,6.31e-05,2]
[422828969,1779483032000,-14429.5993963,6.423e-05,2]
[422828973,1779483032000,-300.0,6.55e-05,2]
[422828956,1779483032000,-214.52568759,6.421e-05,2]
[422828971,1779483032000,-6668.623704,6.531e-05,2]
[422828960,1779483032000,-85.47431241,6.421e-05,2]
[422828962,1779483032000,-300.0,6.421e-05,2]
[422828976,1779483032000,-300.0,6.55e-05,2]
[422828974,1779483032000,-300.0,6.55e-05,2]
[422828966,1779483032000,-300.0,6.422e-05,2]
[422828978,1779483032000,-300.0,6.55e-05,2]
[422829009,1779483033000,-600.0,7.355e-05,2]
[422829007,1779483033000,-188.819796,7.201e-05,2]
[422828997,1779483033000,-300.0,6.55e-05,2]
[422829014,1779483033000,-160.0,7.617e-05,2]
[422829001,1779483033000,-151.0,6.998e-05,2]
[422829005,1779483033000,-443.0,7.096e-05,2]
[422829003,1779483033000,-185.0,7.096e-05,2]
[422828999,1779483033000,-300.0,6.55e-05,2]
[422828990,1779483033000,-300.0,6.55e-05,2]
[422828995,1779483033000,-300.0,6.55e-05,2]
[422828984,1779483033000,-300.0,6.55e-05,2]
[422828992,1779483033000,-300.0,6.55e-05,2]
[422828994,1779483033000,-300.0,6.55e-05,2]
[422828980,1779483033000,-300.0,6.55e-05,2]
[422828982,1779483033000,-300.0,6.55e-05,2]
[422828988,1779483033000,-300.0,6.55e-05,2]
[422829010,1779483033000,-248.357,7.358e-05,2]
[422829012,1779483033000,-250.0,7.427e-05,2]
[422829016,1779483033000,-766.56709688,7.617e-05,2]
[422828986,1779483033000,-300.0,6.55e-05,2]
[422829020,1779483033000,-160.0,7.617e-05,2]
[422829018,1779483033000,-160.0,7.617e-05,2]
[422829053,1779483033000,-435.53341496,7.91e-05,2]
[422829051,1779483033000,-500.0,7.91e-05,2]
[422829057,1779483033000,-1151.66394724,7.911e-05,2]
[422829047,1779483033000,-500.0,7.91e-05,2]
[422829049,1779483033000,-500.0,7.91e-05,2]
[422829054,1779483033000,-10156.27920149,7.911e-05,2]
[422829045,1779483033000,-500.0,7.91e-05,2]
[422829039,1779483033000,-500.0,7.91e-05,2]
[422829043,1779483033000,-500.0,7.91e-05,2]
[422829037,1779483033000,-500.0,7.91e-05,2]
[422829026,1779483033000,-500.0,7.871e-05,2]
[422829027,1779483033000,-36791.0,7.909e-05,2]
[422829024,1779483033000,-229.99,7.864e-05,2]
[422829032,1779483033000,-500.0,7.91e-05,2]
[422829033,1779483033000,-151.52266364,7.91e-05,2]
[422829036,1779483033000,-348.47733636,7.91e-05,2]
[422829022,1779483033000,-161.72364698,7.617e-05,2]
[422829029,1779483033000,-500.0,7.91e-05,2]
[422829041,1779483033000,-500.0,7.91e-05,2]
[422829156,1779483038000,-72844.74808515,7.911e-05,2]
[422829154,1779483038000,-110251.6490126,7.911e-05,2]
[422829159,1779483038000,-720.0,8.091e-05,2]
[422829157,1779483038000,-150.1830659,8.002e-05,2]
[422829155,1779483038000,-1490120.77764138,7.911e-05,2]
[422829161,1779483038000,-207.19499062,8.2e-05,2]
[422829160,1779483038000,-1373.1004437,8.164e-05,2]
[422829162,1779483038000,-151.0,8.219e-05,2]
[422829164,1779483038000,-500.0,8.219e-05,2]
[422829163,1779483038000,-298.154318,8.219e-05,2]
[422829158,1779483038000,-163.60063155,8.017e-05,2]
[422829221,1779483039000,-500.0,8.219e-05,2]
[422829213,1779483039000,-806.87,8.219e-05,2]
[422829212,1779483039000,-550.14,8.219e-05,2]
[422829211,1779483039000,-500.0,8.219e-05,2]
[422829209,1779483039000,-823.67,8.219e-05,2]
[422829208,1779483039000,-500.0,8.219e-05,2]
[422829207,1779483039000,-1192.62,8.219e-05,2]
[422829206,1779483039000,-582.49,8.219e-05,2]
[422829202,1779483039000,-500.0,8.219e-05,2]
[422829203,1779483039000,-939.72,8.219e-05,2]
[422829200,1779483039000,-500.0,8.219e-05,2]
[422829205,1779483039000,-500.0,8.219e-05,2]
[422829215,1779483039000,-290.79493899,8.219e-05,2]
[422829216,1779483039000,-2019.26,8.219e-05,2]
[422829217,1779483039000,-872.32,8.219e-05,2]
[422829214,1779483039000,-500.0,8.219e-05,2]
[422829219,1779483039000,-828.25,8.219e-05,2]
[422829218,1779483039000,-568.47,8.219e-05,2]
[422829220,1779483039000,-532.3,8.219e-05,2]
[422829223,1779483039000,-875.81,8.219e-05,2]
[422829231,1779483039000,-552.93,8.219e-05,2]
[422829234,1779483039000,-500.0,8.219e-05,2]
[422829232,1779483039000,-549.1,8.219e-05,2]
[422829222,1779483039000,-500.0,8.219e-05,2]
[422829233,1779483039000,-500.0,8.219e-05,2]
[422829224,1779483039000,-500.0,8.219e-05,2]
[422829225,1779483039000,-718.3,8.219e-05,2]
[422829201,1779483039000,-500.0,8.219e-05,2]
[422829210,1779483039000,-500.0,8.219e-05,2]
[422829197,1779483039000,-500.0,8.219e-05,2]
[422829189,1779483039000,-1087.13,8.219e-05,2]
[422829198,1779483039000,-500.0,8.219e-05,2]
[422829228,1779483039000,-500.0,8.219e-05,2]
[422829165,1779483039000,-500.0,8.219e-05,2]
[422829166,1779483039000,-502.46,8.219e-05,2]
[422829168,1779483039000,-500.0,8.219e-05,2]
[422829169,1779483039000,-500.0,8.219e-05,2]
[422829167,1779483039000,-500.0,8.219e-05,2]
[422829171,1779483039000,-500.0,8.219e-05,2]
[422829174,1779483039000,-500.0,8.219e-05,2]
[422829178,1779483039000,-500.0,8.219e-05,2]
[422829170,1779483039000,-721.65,8.219e-05,2]
[422829179,1779483039000,-500.0,8.219e-05,2]
[422829176,1779483039000,-500.0,8.219e-05,2]
[422829172,1779483039000,-500.0,8.219e-05,2]
[422829181,1779483039000,-674.34,8.219e-05,2]
[422829180,1779483039000,-1491.31,8.219e-05,2]
[422829182,1779483039000,-500.0,8.219e-05,2]
[422829194,1779483039000,-500.0,8.219e-05,2]
[422829188,1779483039000,-500.0,8.219e-05,2]
[422829186,1779483039000,-500.0,8.219e-05,2]
[422829184,1779483039000,-629.51686188,8.219e-05,2]
[422829183,1779483039000,-500.0,8.219e-05,2]
[422829193,1779483039000,-500.0,8.219e-05,2]
[422829185,1779483039000,-500.0,8.219e-05,2]
[422829195,1779483039000,-500.0,8.219e-05,2]
[422829187,1779483039000,-753.95,8.219e-05,2]
[422829190,1779483039000,-500.0,8.219e-05,2]
[422829192,1779483039000,-523.74,8.219e-05,2]
[422829191,1779483039000,-500.0,8.219e-05,2]
[422829196,1779483039000,-2172.52,8.219e-05,2]
[422829199,1779483039000,-500.0,8.219e-05,2]
[422829226,1779483039000,-500.0,8.219e-05,2]
[422829204,1779483039000,-500.0,8.219e-05,2]
[422829230,1779483039000,-500.0,8.219e-05,2]
[422829266,1779483039000,-1889.4,8.219e-05,2]
[422829270,1779483039000,-500.0,8.219e-05,2]
[422829273,1779483039000,-777.31,8.219e-05,2]
[422829274,1779483039000,-756.56,8.219e-05,2]
[422829272,1779483039000,-500.0,8.219e-05,2]
[422829264,1779483039000,-500.0,8.219e-05,2]
[422829271,1779483039000,-500.0,8.219e-05,2]
[422829268,1779483039000,-799.38,8.219e-05,2]
[422829276,1779483039000,-500.0,8.219e-05,2]
[422829265,1779483039000,-500.0,8.219e-05,2]
[422829267,1779483039000,-500.0,8.219e-05,2]
[422829278,1779483039000,-500.0,8.219e-05,2]
[422829277,1779483039000,-1280.3,8.219e-05,2]
[422829280,1779483039000,-500.0,8.219e-05,2]
[422829279,1779483039000,-433.22218445,8.219e-05,2]
[422829281,1779483039000,-500.0,8.219e-05,2]
[422829282,1779483039000,-500.0,8.219e-05,2]
[422829284,1779483039000,-500.0,8.219e-05,2]
[422829283,1779483039000,-500.0,8.219e-05,2]
[422829286,1779483039000,-500.0,8.219e-05,2]
[422829288,1779483039000,-500.0,8.219e-05,2]
[422829285,1779483039000,-1357.53,8.219e-05,2]
[422829287,1779483039000,-500.0,8.219e-05,2]
[422829289,1779483039000,-500.0,8.219e-05,2]
[422829293,1779483039000,-500.0,8.219e-05,2]
[422829295,1779483039000,-620.28,8.219e-05,2]
[422829290,1779483039000,-500.0,8.219e-05,2]
[422829291,1779483039000,-500.0,8.219e-05,2]
[422829294,1779483039000,-500.0,8.219e-05,2]
[422829269,1779483039000,-761.1,8.219e-05,2]
[422829275,1779483039000,-500.0,8.219e-05,2]
[422829229,1779483039000,-500.0,8.219e-05,2]
[422829255,1779483039000,-500.0,8.219e-05,2]
[422829263,1779483039000,-500.0,8.219e-05,2]
[422829227,1779483039000,-1000.0,8.219e-05,2]
[422829235,1779483039000,-500.0,8.219e-05,2]
[422829236,1779483039000,-926.97,8.219e-05,2]
[422829240,1779483039000,-500.0,8.219e-05,2]
[422829238,1779483039000,-500.0,8.219e-05,2]
[422829239,1779483039000,-500.0,8.219e-05,2]
[422829237,1779483039000,-500.0,8.219e-05,2]
[422829245,1779483039000,-1107.39,8.219e-05,2]
[422829241,1779483039000,-760.13,8.219e-05,2]
[422829247,1779483039000,-554.6,8.219e-05,2]
[422829244,1779483039000,-500.0,8.219e-05,2]
[422829248,1779483039000,-500.0,8.219e-05,2]
[422829243,1779483039000,-500.0,8.219e-05,2]
[422829242,1779483039000,-500.0,8.219e-05,2]
[422829260,1779483039000,-189.7669307,8.219e-05,2]
[422829246,1779483039000,-845.52,8.219e-05,2]
[422829258,1779483039000,-500.0,8.219e-05,2]
[422829253,1779483039000,-500.0,8.219e-05,2]
[422829292,1779483039000,-360.97986297,8.219e-05,2]
[422829257,1779483039000,-665.69,8.219e-05,2]
[422829254,1779483039000,-684.26,8.219e-05,2]
[422829256,1779483039000,-500.0,8.219e-05,2]
[422829259,1779483039000,-565.05540216,8.219e-05,2]
[422829251,1779483039000,-1776.24,8.219e-05,2]
[422829252,1779483039000,-992.2,8.219e-05,2]
[422829261,1779483039000,-1725.08,8.219e-05,2]
[422829250,1779483039000,-500.0,8.219e-05,2]
[422829249,1779483039000,-500.0,8.219e-05,2]
[422829262,1779483039000,-500.0,8.219e-05,2]
[422829348,1779483040000,-834.8,8.219e-05,2]
[422829339,1779483040000,-500.0,8.219e-05,2]
[422829336,1779483040000,-1021.82,8.219e-05,2]
[422829349,1779483040000,-151.0,8.219e-05,2]
[422829337,1779483040000,-681.03,8.219e-05,2]
[422829331,1779483040000,-500.0,8.219e-05,2]
[422829333,1779483040000,-887.15,8.219e-05,2]
[422829330,1779483040000,-532.77619041,8.219e-05,2]
[422829332,1779483040000,-651.26,8.219e-05,2]
[422829329,1779483040000,-500.0,8.219e-05,2]
[422829328,1779483040000,-685.45,8.219e-05,2]
[422829338,1779483040000,-637.86,8.219e-05,2]
[422829347,1779483040000,-151.0,8.219e-05,2]